[Event "79th ARM-ch 1st League 2018"]
[Site "Yerevan"]
[Date "2018.08.11"]
[Round "3"]
[White "Hayrapetyan, Hovik"]
[Black "Poghosyan, Suren"]
[Result "1/2-1/2"]
[ECO "A37"]
[WhiteElo "2439"]
[BlackElo "2301"]
[Annotator "NA"]
[PlyCount "101"]
[EventDate "2018.08.09"]
[EventType "tourn"]
[EventCountry "ARM"]
[SourceTitle "playchess.com"]
[Source "ChessBase"]
[SourceQuality "1"]
[TimeControl "40/5400+30:1800+30"]

1. g3 {[%emt 0:01:23]} c5 {[%emt 0:01:07]} 2. Bg2 {[%emt 0:00:29]} Nc6 {[%emt 0:00:08]} 3. c4 {[%emt 0:00:27]} g6 {[%emt 0:00:18]} 4. Nc3 {[%emt 0:00:29]} Bg7 {[%emt 0:00:09]} 5. Nf3 {[%emt 0:00:42]} d6 {[%emt 0:01:58]} 6. O-O {[%emt 0:00:55]} Nf6 {[%emt 0:00:24]} 7. d4 {[%emt 0:02:58]} cxd4 {[%emt 0:00:24]} 8. Nxd4 {[%emt 0:00:31]} Bd7 {[%emt 0:00:06]} 9. e3 {[%emt 0:01:40]} Qc8 {[%emt 0:05:24]} 10. Re1 {[%emt 0:05:40]} Bh3 {[%emt 0:02:49]} 11. Bh1 {[%emt 0:03:26]} h5 {[%emt 0:01:20]} 12. b3 {[%emt 0:05:04]} h4 {[%emt 0:04:47]} 13. Bb2 {[%emt 0:02:37]} hxg3 {[%emt 0:19:23]} 14. hxg3 {[%emt 0:00:17]} Bg4 {[%emt 0:01:35]} 15. f3 {[%emt 0:03:37]} Nxd4 {[%emt 0:25:51]} 16. exd4 {[%emt 0:00:46]} Qf5 {[%emt 0:01:31]} 17. fxg4 {[%emt 0:12:09]} Nxg4 {[%emt 0:02:06]} 18. Ne4 {[%emt 0:02:49]} Rxh1+ {[%emt 0:08:20]} 19. Kxh1 {[%emt 0:00:18]} O-O-O {[%emt 0:00:11]} 20. Qc2 {[%emt 0:07:32]} Rh8+ {[%emt 0:15:41]} 21. Kg1 {[%emt 0:00:13]} Rh3 {[%emt 0:00:20]} 22. Qg2 {[%emt 0:08:29]} Rh2 {[%emt 0:00:56]} 23. Qxh2 {[%emt 0:01:00]} Nxh2 {[%emt 0:00:07]} 24. Kxh2 {[%emt 0:00:02]} Qf3 {[%emt 0:00:25]} 25. Rad1 {[%emt 0:13:04]} f5 {[%emt 0:00:55]} 26. Nd2 {[%emt 0:00:03]} Qf2+ {[%emt 0:00:18]} 27. Kh1 {[%emt 0:00:01]} Qxg3 {[%emt 0:00:52]} 28. Re2 {[%emt 0:05:53]} Bf6 {[%emt 0:01:50]} 29. Rf1 {[%emt 0:05:35]} g5 {[%emt 0:01:58]} 30. Rf3 {[%emt 0:06:00]} Qg4 {[%emt 0:02:26]} 31. Ref2 {[%emt 0:04:40]} e6 {[%emt 0:00:43]} 32. Nf1 {[%emt 0:03:50]} Qe4 {[%emt 0:00:30]} 33. Ng3 {[%emt 0:00:30]} Qb1+ {[%emt 0:00:22]} 34. Kg2 {[%emt 0:00:19]} g4 {[%emt 0:00:36]} 35. Re3 {[%emt 0:01:29]} Bg5 {[%emt 0:00:28]} 36. Rxe6 {[%emt 0:00:29]} f4 {[%emt 0:00:06]} 37. Nf1 {[%emt 0:01:19]} Qf5 {[%emt 0:01:18]} 38. Re8+ {[%emt 0:00:55]} Kd7 {[%emt 0:00:10]} 39. Rg8 {[%emt 0:00:20]} Qe4+ {[%emt 0:01:03]} 40. Kg1 {[%emt 0:00:00]} g3 {[%emt 0:00:00]} 41. Rg2 {[%emt 0:08:13]} Bf6 {[%emt 0:12:51]} 42. Nxg3 {[%emt 0:03:30]} fxg3 {[%emt 0:00:24]} 43. R8xg3 {[%emt 0:00:03]} Bxd4+ {[%emt 0:00:57]} 44. Bxd4 {[%emt 0:01:00]} Qxd4+ {[%emt 0:00:06]} 45. Rf2 {[%emt 0:00:01]} d5 {[%emt 0:06:54]} 46. cxd5 {[%emt 0:00:32]} Qd1+ {[%emt 0:00:49]} 47. Kg2 {[%emt 0:00:06]} Qxd5+ {[%emt 0:00:05]} 48. Rgf3 {[%emt 0:00:04]} Kc7 {[%emt 0:03:24]} 49. Re2 {[%emt 0:00:10]} a6 {[%emt 0:00:18]} 50. Kf2 {[%emt 0:00:06]} Kb6 {[%emt 0:00:11]} 51. Rfe3 {[%emt 0:00:26]} 1/2-1/2

[Event "79th ARM-ch 1st League 2018"]
[Site "Yerevan"]
[Date "2018.08.11"]
[Round "3"]
[White "Hayrapetyan, Artavazd R."]
[Black "Martirosyan, Garik"]
[Result "1-0"]
[ECO "A05"]
[WhiteElo "2371"]
[BlackElo "2145"]
[Annotator "NA"]
[PlyCount "43"]
[EventDate "2018.08.09"]
[EventType "tourn"]
[EventCountry "ARM"]
[SourceTitle "playchess.com"]
[Source "ChessBase"]
[SourceQuality "1"]
[TimeControl "40/5400+30:1800+30"]

1. Nf3 {[%emt 0:00:09]} Nf6 {[%emt 0:00:00]} 2. g3 {[%emt 0:00:12]} b5 {[%emt 0:03:38]} 3. Bg2 {[%emt 0:01:15]} Bb7 {[%emt 0:00:16]} 4. d3 {[%emt 0:00:06]} c5 {[%emt 0:04:53]} 5. O-O {[%emt 0:00:07]} g6 {[%emt 0:02:08]} 6. e4 {[%emt 0:00:42]} Bg7 {[%emt 0:00:31]} 7. e5 {[%emt 0:01:28]} Ng4 {[%emt 0:03:40]} 8. Re1 {[%emt 0:01:01]} O-O {[%emt 0:06:15]} 9. h3 {[%emt 0:02:46]} Nh6 {[%emt 0:00:16]} 10. Nc3 {[%emt 0:06:29]} Qb6 {[%emt 0:09:06]} 11. a4 {[%emt 0:01:21]} b4 {[%emt 0:05:41]} 12. a5 {[%emt 0:00:19]} Qc7 {[%emt 0:01:37]} 13. Ne4 {[%emt 0:00:07]} Na6 {[%emt 0:02:11]} 14. c3 {[%emt 0:25:52]} d6 {[%emt 0:14:59]} 15. d4 {[%emt 0:07:38]} dxe5 {[%emt 0:03:26]} 16. dxe5 {[%emt 0:00:20]} Rad8 {[%emt 0:00:54]} 17. Qe2 {[%emt 0:00:09]} f6 {[%emt 0:01:58]} 18. exf6 {[%emt 0:03:44]} exf6 {[%emt 0:00:06]} 19. Bf4 {[%emt 0:00:04]} Qc6 {[%emt 0:02:07]} 20. Nh4 {[%emt 0:08:35]} Rfe8 {[%emt 0:11:25]} 21. Qc4+ {[%emt 0:00:52]} Kh8 {[%emt 0:00:39]} 22. Nd6 {[%emt 0:00:58]} 1-0

[Event "79th ARM-ch 1st League 2018"]
[Site "Yerevan"]
[Date "2018.08.11"]
[Round "3"]
[White "Hoghmrtsyan, Artur"]
[Black "Mkrtchyan, Sargis R."]
[Result "1-0"]
[ECO "E65"]
[WhiteElo "2157"]
[BlackElo "2239"]
[Annotator "NA"]
[PlyCount "67"]
[EventDate "2018.08.09"]
[EventType "tourn"]
[EventCountry "ARM"]
[SourceTitle "playchess.com"]
[Source "ChessBase"]
[SourceQuality "1"]
[TimeControl "40/5400+30:1800+30"]

1. Nf3 {[%emt 0:00:00]} Nf6 {[%emt 0:00:00]} 2. g3 {[%emt 0:00:00]} g6 {[%emt 0:00:16]} 3. Bg2 {[%emt 0:00:04]} Bg7 {[%emt 0:00:07]} 4. O-O {[%emt 0:00:09]} O-O {[%emt 0:00:15]} 5. d4 {[%emt 0:00:27]} d6 {[%emt 0:00:43]} 6. c4 {[%emt 0:01:00]} c5 {[%emt 0:00:43]} 7. Nc3 {[%emt 0:01:38]} Nc6 {[%emt 0:00:11]} 8. dxc5 {[%emt 0:03:48]} dxc5 {[%emt 0:00:21]} 9. Be3 {[%emt 0:00:26]} Be6 {[%emt 0:02:14]} 10. Bxc5 {[%emt 0:07:14]} Qa5 {[%emt 0:06:29]} 11. Ba3 {[%emt 0:11:08]} Bxc4 {[%emt 0:02:40]} 12. Nd4 {[%emt 0:02:04]} Nd5 {[%emt 0:16:50]} 13. Nb3 {[%emt 0:18:08]} Bxb3 {[%emt 0:03:26]} 14. Qxb3 {[%emt 0:00:24]} Nxc3 {[%emt 0:00:13]} 15. bxc3 {[%emt 0:00:13]} Bxc3 {[%emt 0:06:47]} 16. Bxc6 {[%emt 0:00:50]} Bxa1 {[%emt 0:02:07]} 17. Bxb7 {[%emt 0:00:22]} Rab8 {[%emt 0:22:13]} 18. Bxe7 {[%emt 0:13:22]} Rfe8 {[%emt 0:08:35]} 19. Bd6 {[%emt 0:00:07]} Rbd8 {[%emt 0:02:17]} 20. Bd5 {[%emt 0:00:19]} Kg7 {[%emt 0:00:24]} 21. Qb7 {[%emt 0:07:46]} Kh8 {[%emt 0:17:41]} 22. Bxf7 {[%emt 0:03:58]} Rxd6 {[%emt 0:03:07]} 23. Bxe8 {[%emt 0:00:09]} Bf6 {[%emt 0:01:25]} 24. Bf7 {[%emt 0:01:46]} Qd2 {[%emt 0:00:53]} 25. Bc4 {[%emt 0:01:23]} Bd4 {[%emt 0:00:27]} 26. Qb8+ {[%emt 0:00:45]} Kg7 {[%emt 0:00:06]} 27. Qg8+ {[%emt 0:00:06]} Kh6 {[%emt 0:00:09]} 28. Qf8+ {[%emt 0:01:01]} Bg7 {[%emt 0:00:30]} 29. Qc8 {[%emt 0:02:56]} Bd4 {[%emt 0:01:02]} 30. e3 {[%emt 0:01:11]} Bf6 {[%emt 0:01:47]} 31. Qf8+ {[%emt 0:00:27]} Kg5 {[%emt 0:00:35]} 32. Bb3 {[%emt 0:00:51]} h5 {[%emt 0:00:34]} 33. h4+ {[%emt 0:00:17]} Kg4 {[%emt 0:00:29]} 34. Rd1 {[%emt 0:00:24]} 1-0

[Event "79th ARM-ch 1st League 2018"]
[Site "Yerevan"]
[Date "2018.08.13"]
[Round "5"]
[White "Sargsyan, Tigran R"]
[Black "Martirosyan, Garik"]
[Result "1-0"]
[ECO "A46"]
[WhiteElo "2136"]
[BlackElo "2145"]
[Annotator "NA"]
[PlyCount "55"]
[EventDate "2018.08.09"]
[EventType "tourn"]
[EventCountry "ARM"]
[SourceTitle "playchess.com"]
[Source "ChessBase"]
[SourceQuality "1"]
[TimeControl "40/5400+30:1800+30"]

{[%evp 8,47,0,13,37,18,52,46,49,31,56,31,97,64,109,102,252,246,231,237,270,287,32767,32767,32767,300,32767,32767,32767,32767,288,32767,32767,32767,32767,32767,32767,32767,314,273,315,352]} 1. d4 {[%emt 0:00:00]} Nf6 {[%emt 0:00:00]} 2. Nf3 {[%emt 0:00:00]} e6 {[%emt 0:00:00]} 3. e3 {[%emt 0:00:12]} b6 {[%emt 0:01:37]} 4. Bd3 {[%emt 0:00:09]} Bb7 {[%emt 0:00:16]} 5. O-O {[%emt 0:00:14]} g6 {[%emt 0:01:04] LiveBook: 65 Games A47: 1 d4 Nf6 2 Nf3 b6: Torre, London and Colle Systems} (5... d5 6. b3 Be7 7. Bb2 O-O 8. Nbd2 c5 9. Qe2 Nbd7 10. c4 cxd4 11. exd4 Re8 12. Rac1 Rc8 13. Rfd1 Bf8 14. Ne5 dxc4 15. bxc4 Nxe5 16. dxe5 Nd7 17. Be4 Qc7 18. Bxb7 Qxb7 19. Ne4 {1-0 (49) Mamedyarov,S (2804)-Ju,W (2572) chess.com INT 2018}) 6. Qe2 {[%emt 0:01:16]} Bg7 {[%emt 0:00:29]} 7. e4 {[%emt 0:00:26]} d6 {[%emt 0:00:49]} 8. e5 {[%emt 0:09:19]} Nfd7 $146 {[%emt 0:01:29]} ({Predecessor:} 8... dxe5 9. dxe5 Nfd7 10. Be4 Nc6 11. Rd1 Qc8 12. Bf4 Nc5 13. Nc3 {1-0 (53) Cori Tello,J (2496)-Rios,C (2362) Cochabamba 2013}) 9. Rd1 {[%emt 0:02:35]} d5 {[%emt 0:02:18]} (9... dxe5 $11 10. dxe5 Bxf3 11. Qxf3 c6) 10. h4 {[%emt 0:04:49]} Qc8 {[%emt 0:05:54]} 11. h5 {[%emt 0:02:15]} Ba6 {[%emt 0:00:54]} (11... c5 $16) 12. h6 {[%emt 0:01:02]} Bf8 {[%emt 0:00:12] [#]} 13. c4 $1 {[%emt 0:05:02]} c6 {[%emt 0:03:28]} 14. Bg5 {[%emt 0:04:00]} Qb7 {[%emt 0:05:38]} 15. a3 {[%emt 0:07:43]} dxc4 {[%emt 0:10:33]} 16. Bxc4 {[%emt 0:00:40]} Bxc4 {[%emt 0:00:37]} 17. Qxc4 {[%emt 0:00:15]} Na6 {[%emt 0:00:16]} 18. Nc3 {[%emt 0:03:23]} Nc7 {[%emt 0:00:50]} 19. Ne4 {[%emt 0:04:14]} Nd5 {[%emt 0:00:52]} 20. Rac1 {[%emt 0:03:55]} Rc8 {[%emt 0:02:22]} 21. Qa4 {[%emt 0:05:51]} b5 {[%emt 0:03:12]} 22. Qc2 {[%emt 0:02:29]} Rc7 {[%emt 0:01:40]} 23. Qd2 {[%emt 0:07:16]} b4 $18 {[%emt 0:01:33]} 24. Qd3 {[%emt 0:01:13]} Qb6 {[%emt 0:09:22]} 25. Nfd2 {[%emt 0:02:10]} c5 {[%emt 0:01:52]} 26. Nc4 {[%emt 0:01:45]} Qc6 {[%emt 0:00:05]} 27. dxc5 {[%emt 0:06:30]} Nxc5 {[%emt 0:00:27]} 28. Nf6+ {[%emt 0:00:31]} 1-0

[Event "79th ARM-ch 1st League 2018"]
[Site "Yerevan"]
[Date "2018.08.14"]
[Round "6"]
[White "Hakobyan, Aram"]
[Black "Hayrapetyan, Artavazd R"]
[Result "1/2-1/2"]
[ECO "C10"]
[WhiteElo "2545"]
[BlackElo "2371"]
[Annotator "ChessBase"]
[PlyCount "124"]
[EventDate "2018.08.09"]
[EventType "tourn"]
[EventCountry "ARM"]
[SourceTitle "playchess.com"]
[Source "ChessBase"]
[SourceQuality "1"]
[TimeControl "40/5400+30:1800+30"]

1. e4 {[%emt 0:03:32]} e6 {[%emt 0:00:48]} 2. d4 {[%emt 0:00:42]} d5 {[%emt 0:00:02]} 3. Nc3 {[%emt 0:00:49]} Nc6 {[%emt 0:05:29]} 4. Nf3 {[%emt 0:00:02]} Nf6 {[%emt 0:00:09]} 5. e5 {[%emt 0:00:15]} Nd7 {[%emt 0:00:04]} 6. Bb5 {[%emt 0:00:24]} a6 {[%emt 0:00:54]} 7. Bg5 {[%emt 0:03:48]} Be7 {[%emt 0:08:02]} 8. Bxe7 {[%emt 0:00:29]} Qxe7 {[%emt 0:02:24]} 9. Bd3 {[%emt 0:00:27]} Nb4 {[%emt 0:04:39]} 10. a3 {[%emt 0:01:51]} Nxd3+ {[%emt 0:00:07]} 11. Qxd3 {[%emt 0:01:35]} b6 {[%emt 0:00:44]} 12. O-O {[%emt 0:00:22]} c5 {[%emt 0:07:45]} 13. Rfe1 {[%emt 0:00:10]} O-O {[%emt 0:06:09]} 14. Qe3 {[%emt 0:04:22]} Bb7 {[%emt 0:07:11]} 15. Ne2 {[%emt 0:00:12]} a5 {[%emt 0:01:38]} 16. Ng3 {[%emt 0:01:06]} Rfc8 {[%emt 0:07:01]} 17. Nh5 {[%emt 0:02:17]} Ba6 {[%emt 0:01:35]} 18. Qf4 {[%emt 0:02:31]} Nf8 {[%emt 0:02:26]} 19. c3 {[%emt 0:45:16]} Ng6 {[%emt 0:05:08]} 20. Qd2 {[%emt 0:01:43]} Bc4 {[%emt 0:08:01]} 21. Qe3 {[%emt 0:01:40]} Bb3 {[%emt 0:01:35]} 22. Rac1 {[%emt 0:00:58]} Ba4 {[%emt 0:00:55]} 23. Nf4 {[%emt 0:01:03]} c4 {[%emt 0:00:58]} 24. g3 {[%emt 0:06:50]} b5 {[%emt 0:01:14]} 25. h4 {[%emt 0:00:17]} b4 {[%emt 0:04:33]} 26. axb4 {[%emt 0:00:01]} axb4 {[%emt 0:00:04]} 27. h5 {[%emt 0:02:42]} Nxf4 {[%emt 0:00:02]} 28. Qxf4 {[%emt 0:00:39]} h6 {[%emt 0:00:04]} 29. g4 {[%emt 0:00:32]} Kh7 {[%emt 0:04:51]} 30. g5 {[%emt 0:00:43]} bxc3 {[%emt 0:00:38]} 31. bxc3 {[%emt 0:00:29]} Rab8 {[%emt 0:02:00]} 32. Kh1 {[%emt 0:00:51]} Rb2 {[%emt 0:02:42]} 33. Rg1 {[%emt 0:01:06]} Bc2 {[%emt 0:03:18]} 34. Rg2 {[%emt 0:06:35]} Rb1 {[%emt 0:02:18]} 35. Rxb1 {[%emt 0:02:12]} Bxb1 {[%emt 0:00:05]} 36. Kh2 {[%emt 0:05:08]} Be4 {[%emt 0:03:58]} 37. gxh6 {[%emt 0:01:15]} gxh6 {[%emt 0:00:05]} 38. Qg4 {[%emt 0:02:05]} f6 {[%emt 0:01:58]} 39. Rg3 {[%emt 0:00:26]} Rf8 {[%emt 0:00:42]} 40. Nd2 {[%emt 0:00:00]} Bc2 {[%emt 0:00:00]} 41. Qh4 {[%emt 0:03:00]} Qf7 {[%emt 0:08:08]} 42. Rf3 {[%emt 0:06:51]} Bf5 {[%emt 0:00:43]} 43. exf6 {[%emt 0:00:22]} Qxf6 {[%emt 0:01:02]} 44. Qxf6 {[%emt 0:00:14]} Rxf6 {[%emt 0:00:01]} 45. Nf1 {[%emt 0:00:14]} Kg7 {[%emt 0:01:31]} 46. Ng3 {[%emt 0:00:16]} Bg4 {[%emt 0:02:00]} 47. Rxf6 {[%emt 0:00:30]} Kxf6 {[%emt 0:00:06]} 48. f4 {[%emt 0:00:06]} Ke7 {[%emt 0:00:50]} 49. Kg2 {[%emt 0:00:04]} Kd6 {[%emt 0:02:13]} 50. Kf2 {[%emt 0:00:04]} Kc6 {[%emt 0:00:39]} 51. Nf1 {[%emt 0:06:38]} Bxh5 {[%emt 0:05:42]} 52. Ne3 {[%emt 0:00:13]} Be8 {[%emt 0:03:25]} 53. f5 {[%emt 0:01:03]} exf5 {[%emt 0:01:01]} 54. Nxf5 {[%emt 0:00:03]} h5 {[%emt 0:00:08]} 55. Kg3 {[%emt 0:03:49]} Kb6 {[%emt 0:02:34]} 56. Kf4 {[%emt 0:00:53]} Bg6 {[%emt 0:01:41]} 57. Ne3 {[%emt 0:03:39]} Bf7 {[%emt 0:01:07]} 58. Nd1 {[%emt 0:01:31]} Kc6 {[%emt 0:12:09]} 59. Kg5 {[%emt 0:00:27]} Kd6 {[%emt 0:00:15]} 60. Ne3 {[%emt 0:00:52]} Kc6 {[%emt 0:00:22]} 61. Nd1 {[%emt 0:00:14]} Be8 {[%emt 0:00:04]} 62. Ne3 {[%emt 0:01:39]} Bf7 {[%emt 0:00:33]} 1/2-1/2

[Event "79th ARM-ch 1st League 2018"]
[Site "Yerevan"]
[Date "2018.08.14"]
[Round "6"]
[White "Harutyunian, Tigran K"]
[Black "Hayrapetyan, Hovik"]
[Result "1/2-1/2"]
[ECO "D37"]
[WhiteElo "2504"]
[BlackElo "2439"]
[Annotator "ChessBase"]
[PlyCount "73"]
[EventDate "2018.08.09"]
[EventType "tourn"]
[EventCountry "ARM"]
[SourceTitle "playchess.com"]
[Source "ChessBase"]
[SourceQuality "1"]
[TimeControl "40/5400+30:1800+30"]

1. d4 {[%emt 0:01:32]} Nf6 {[%emt 0:00:00]} 2. Nf3 {[%emt 0:00:12]} d5 {[%emt 0:00:34]} 3. c4 {[%emt 0:00:13]} e6 {[%emt 0:02:06]} 4. Nc3 {[%emt 0:00:32]} Be7 {[%emt 0:01:15]} 5. Bf4 {[%emt 0:05:08]} O-O {[%emt 0:01:00]} 6. Rc1 {[%emt 0:00:09]} dxc4 {[%emt 0:01:09]} 7. e3 {[%emt 0:00:36]} Nd5 {[%emt 0:03:50]} 8. Bxc4 {[%emt 0:01:40]} Nxf4 {[%emt 0:00:05]} 9. exf4 {[%emt 0:00:06]} Nd7 {[%emt 0:00:27]} 10. O-O {[%emt 0:00:50]} Nb6 {[%emt 0:05:18]} 11. Bb3 {[%emt 0:19:00]} Nd5 {[%emt 0:00:27]} 12. g3 {[%emt 0:00:16]} Nxc3 {[%emt 0:00:51]} 13. Rxc3 {[%emt 0:00:28]} Bd7 {[%emt 0:00:32]} 14. Qc2 {[%emt 0:14:24]} Bf6 {[%emt 0:07:58]} 15. Rd1 {[%emt 0:05:51]} Bc6 {[%emt 0:05:16]} 16. f5 {[%emt 0:09:33]} exf5 {[%emt 0:03:45]} 17. Qxf5 {[%emt 0:01:52]} g6 {[%emt 0:01:12]} 18. Qf4 {[%emt 0:01:04]} Bxf3 {[%emt 0:01:41]} 19. Rxf3 {[%emt 0:03:22]} Kg7 {[%emt 0:00:14]} 20. h4 {[%emt 0:03:03]} Qd6 {[%emt 0:01:47]} 21. Qxd6 {[%emt 0:06:22]} cxd6 {[%emt 0:00:08]} 22. Bd5 {[%emt 0:00:07]} Rab8 {[%emt 0:03:42]} 23. Rdd3 {[%emt 0:04:08]} Rbc8 {[%emt 0:06:36]} 24. h5 {[%emt 0:04:21]} h6 {[%emt 0:03:55]} 25. hxg6 {[%emt 0:02:00]} fxg6 {[%emt 0:00:48]} 26. Bxb7 {[%emt 0:00:05]} Rc1+ {[%emt 0:04:06]} 27. Kg2 {[%emt 0:00:12]} Rb8 {[%emt 0:00:03]} 28. Bd5 {[%emt 0:08:26]} Rxb2 {[%emt 0:00:26]} 29. Ra3 {[%emt 0:01:46]} Rc7 {[%emt 0:01:56]} 30. Rae3 {[%emt 0:00:13]} Rb5 {[%emt 0:03:52]} 31. Re6 {[%emt 0:00:58]} Bxd4 {[%emt 0:00:05]} 32. Be4 {[%emt 0:01:19]} Rg5 {[%emt 0:01:25]} 33. Rxd6 {[%emt 0:00:33]} Bc5 {[%emt 0:01:34]} 34. Rd8 {[%emt 0:00:46]} Re5 {[%emt 0:00:47]} 35. Bd5 {[%emt 0:00:34]} Rf5 {[%emt 0:00:51]} 36. Rg8+ {[%emt 0:02:41]} Kh7 {[%emt 0:01:59]} 37. Rxf5 {[%emt 0:00:59]} 1/2-1/2

[Event "79th ARM-ch 1st League 2018"]
[Site "Yerevan"]
[Date "2018.08.14"]
[Round "6"]
[White "Mikaelyan, Arman"]
[Black "Sargsyan, Shant"]
[Result "1/2-1/2"]
[ECO "D38"]
[WhiteElo "2496"]
[BlackElo "2472"]
[Annotator "ChessBase"]
[PlyCount "145"]
[EventDate "2018.08.09"]
[EventType "tourn"]
[EventCountry "ARM"]
[SourceTitle "playchess.com"]
[Source "ChessBase"]
[SourceQuality "1"]
[TimeControl "40/5400+30:1800+30"]

1. Nf3 {[%emt 0:00:00]} d5 {[%emt 0:01:55]} 2. c4 {[%emt 0:00:18]} e6 {[%emt 0:01:10]} 3. d4 {[%emt 0:00:20]} Nf6 {[%emt 0:00:19]} 4. Nc3 {[%emt 0:00:06]} Bb4 {[%emt 0:00:19]} 5. Qa4+ {[%emt 0:00:07]} Nc6 {[%emt 0:00:08]} 6. e3 {[%emt 0:00:08]} O-O {[%emt 0:00:28]} 7. Qc2 {[%emt 0:00:17]} b6 {[%emt 0:02:02]} 8. a3 {[%emt 0:04:53]} Bxc3+ {[%emt 0:00:23]} 9. Qxc3 {[%emt 0:00:36]} Ne7 {[%emt 0:00:10]} 10. b3 {[%emt 0:01:49]} a5 {[%emt 0:01:25]} 11. Bb2 {[%emt 0:04:02]} Ba6 {[%emt 0:03:08]} 12. Rc1 {[%emt 0:04:21]} c6 {[%emt 0:20:41]} 13. Nd2 {[%emt 0:07:39]} b5 {[%emt 0:05:17]} 14. c5 {[%emt 0:09:31]} b4 {[%emt 0:01:40]} 15. axb4 {[%emt 0:00:44]} Bxf1 {[%emt 0:00:24]} 16. Nxf1 {[%emt 0:08:16]} Ne4 {[%emt 0:00:51]} 17. Qc2 {[%emt 0:00:23]} axb4 {[%emt 0:00:30]} 18. f3 {[%emt 0:00:20]} Nf6 {[%emt 0:00:34]} 19. Ng3 {[%emt 0:00:11]} Qc8 {[%emt 0:03:55]} 20. O-O {[%emt 0:02:25]} Nf5 {[%emt 0:01:32]} 21. Kf2 {[%emt 0:06:22]} Re8 {[%emt 0:13:20]} 22. Ra1 {[%emt 0:02:00]} Nxg3 {[%emt 0:05:50]} 23. hxg3 {[%emt 0:00:11]} Qc7 {[%emt 0:00:18]} 24. Qd2 {[%emt 0:09:18]} Qb7 {[%emt 0:01:43]} 25. Rfb1 {[%emt 0:00:51]} Reb8 {[%emt 0:03:06]} 26. Qd3 {[%emt 0:02:16]} Rxa1 {[%emt 0:01:42]} 27. Rxa1 {[%emt 0:00:11]} Ra8 {[%emt 0:00:05]} 28. Qb1 {[%emt 0:06:35]} Ne8 {[%emt 0:01:24]} 29. Qe1 {[%emt 0:01:11]} Rxa1 {[%emt 0:06:08]} 30. Qxa1 {[%emt 0:00:13]} Kf8 {[%emt 0:00:18]} 31. Qa5 {[%emt 0:01:19]} Ke7 {[%emt 0:00:15]} 32. Bc1 {[%emt 0:00:28]} Nc7 {[%emt 0:01:08]} 33. Bd2 {[%emt 0:01:23]} Na6 {[%emt 0:00:25]} 34. e4 {[%emt 0:02:29]} Kd7 {[%emt 0:04:57]} 35. Bf4 {[%emt 0:01:53]} f6 {[%emt 0:12:12]} 36. Bd6 {[%emt 0:03:55]} Kc8 {[%emt 0:04:26]} 37. e5 {[%emt 0:04:02]} f5 {[%emt 0:01:22]} 38. Kg1 {[%emt 0:02:35]} Kd7 {[%emt 0:01:33]} 39. Kh2 {[%emt 0:00:20]} Ke8 {[%emt 0:01:51]} 40. Qb6 {[%emt 0:00:00]} Qa8 {[%emt 0:00:00]} 41. Kh3 {[%emt 0:03:36]} Kf7 {[%emt 0:11:33]} 42. g4 {[%emt 0:00:49]} fxg4+ {[%emt 0:02:07]} 43. Kxg4 {[%emt 0:00:14]} Ke8 {[%emt 0:01:08]} 44. f4 {[%emt 0:00:34]} Kf7 {[%emt 0:00:27]} 45. Kh4 {[%emt 0:03:07]} h6 {[%emt 0:03:23]} 46. g3 {[%emt 0:03:06]} g6 {[%emt 0:10:39]} 47. Kg4 {[%emt 0:01:37]} Ke8 {[%emt 0:00:23]} 48. Kf3 {[%emt 0:02:48]} Kf7 {[%emt 0:00:08]} 49. Ke3 {[%emt 0:00:46]} Ke8 {[%emt 0:00:22]} 50. g4 {[%emt 0:05:04]} Kf7 {[%emt 0:00:11]} 51. Qa5 {[%emt 0:00:22]} h5 {[%emt 0:02:16]} 52. Qa1 {[%emt 0:05:59]} hxg4 {[%emt 0:02:16]} 53. Qh1 {[%emt 0:00:44]} Qg8 {[%emt 0:00:24]} 54. Qh6 {[%emt 0:05:39]} Ke8 {[%emt 0:00:34]} 55. Kf2 {[%emt 0:01:32]} Kd7 {[%emt 0:00:56]} 56. Kg3 {[%emt 0:04:02]} Nc7 {[%emt 0:00:17]} 57. Qh4 {[%emt 0:06:25]} Qf7 {[%emt 0:01:02]} 58. Bxc7 {[%emt 0:05:05]} Kxc7 {[%emt 0:00:01]} 59. Qxg4 {[%emt 0:00:12]} Kd7 {[%emt 0:00:26]} 60. Qg5 {[%emt 0:00:16]} Ke8 {[%emt 0:01:01]} 61. Kg4 {[%emt 0:01:01]} Kf8 {[%emt 0:00:50]} 62. Qd8+ {[%emt 0:00:39]} Kg7 {[%emt 0:00:06]} 63. Kg3 {[%emt 0:00:22]} Qf5 {[%emt 0:01:13]} 64. Qe7+ {[%emt 0:02:00]} Kh6 {[%emt 0:00:35]} 65. Qe8 {[%emt 0:01:14]} Kg7 {[%emt 0:00:34]} 66. Qxc6 {[%emt 0:00:52]} Qd3+ {[%emt 0:00:06]} 67. Kh4 {[%emt 0:00:18]} g5+ {[%emt 0:00:46]} 68. fxg5 {[%emt 0:00:29]} Qxd4+ {[%emt 0:00:22]} 69. Kh5 {[%emt 0:00:37]} Qd1+ {[%emt 0:00:07]} 70. Kh4 {[%emt 0:00:02]} Qe1+ {[%emt 0:00:21]} 71. Kh5 {[%emt 0:00:34]} Qe2+ {[%emt 0:00:17]} 72. Kh4 {[%emt 0:00:02]} Qe4+ {[%emt 0:00:14]} 73. Kh5 {[%emt 0:00:31]} 1/2-1/2

[Event "79th ARM-ch 1st League 2018"]
[Site "Yerevan"]
[Date "2018.08.14"]
[Round "6"]
[White "Davtyan, Artur"]
[Black "Mkrtchyan, Sargis R"]
[Result "1-0"]
[ECO "E97"]
[WhiteElo "2353"]
[BlackElo "2239"]
[Annotator "NA"]
[PlyCount "57"]
[EventDate "2018.08.09"]
[EventType "tourn"]
[EventCountry "ARM"]
[SourceTitle "playchess.com"]
[Source "ChessBase"]
[SourceQuality "1"]
[TimeControl "40/5400+30:1800+30"]

1. d4 {[%emt 0:00:50]} Nf6 {[%emt 0:00:00]} 2. c4 {[%emt 0:00:04]} g6 {[%emt 0:00:01]} 3. Nc3 {[%emt 0:00:05]} Bg7 {[%emt 0:00:31]} 4. e4 {[%emt 0:00:15]} d6 {[%emt 0:00:08]} 5. Nf3 {[%emt 0:00:08]} O-O {[%emt 0:00:10]} 6. Be2 {[%emt 0:00:02]} e5 {[%emt 0:00:08]} 7. O-O {[%emt 0:00:03]} Nc6 {[%emt 0:00:57]} 8. Be3 {[%emt 0:00:13]} Ng4 {[%emt 0:00:29]} 9. Bg5 {[%emt 0:00:11]} f6 {[%emt 0:00:08]} 10. Bh4 {[%emt 0:00:01]} g5 {[%emt 0:00:19]} 11. Bg3 {[%emt 0:00:05]} Nh6 {[%emt 0:00:09]} 12. dxe5 {[%emt 0:00:02]} fxe5 {[%emt 0:00:08]} 13. Nd5 {[%emt 0:00:02] E97: King's Indian: Classical Main Line (6...e5 7 0-0 Nc6): 8 Be3 and 8 d5 Ne7, not 9 Ne1} (13. h3 g4 14. hxg4 Bxg4 15. Ne1 Be6 16. Nc2 Kh8 17. Nd5 Qd7 18. Qd3 Ne7 19. Rad1 Ng6 20. Qd2 Rad8 21. Bh5 {½-½ (37) Ghaem Maghami,E (2596)-Grischuk,A (2774) Berlin 2015}) 13... Be6 {[%emt 0:06:41]} 14. Rc1 {[%emt 0:06:48]} Nf7 {[%emt 0:05:24]} 15. c5 $146 {[%emt 0:03:02]} ({Predecessor:} 15. h3 Kh8 16. c5 a5 17. a3 Rg8 18. Qb3 Ra7 19. Rfd1 Nd4 20. Nxd4 exd4 {1-0 (42) Kozak,A (2440)-Szalanczy,E (2217) Budapest 2018}) 15... h5 {[%emt 0:06:57]} 16. h3 {[%emt 0:04:38]} h4 {[%emt 0:23:57]} 17. Bh2 {[%emt 0:00:02]} g4 {[%emt 0:18:10]} 18. hxg4 {[%emt 0:00:27]} Bh6 {[%emt 0:00:06]} 19. Rc3 {[%emt 0:06:03]} Kg7 {[%emt 0:12:36]} 20. b4 {[%emt 0:04:05]} Ng5 {[%emt 0:05:42]} 21. Nxg5 {[%emt 0:22:07]} Bxg5 {[%emt 0:00:11]} 22. f4 $18 {[%emt 0:00:39]} exf4 {[%emt 0:01:37]} 23. Nxf4 {[%emt 0:00:31]} Bxf4 {[%emt 0:04:47]} 24. Bxf4 {[%emt 0:00:07]} Qf6 {[%emt 0:01:22]} 25. Qd2 {[%emt 0:08:05]} Rad8 {[%emt 0:09:40]} 26. cxd6 {[%emt 0:03:33]} cxd6 {[%emt 0:01:30]} 27. Bxd6 {[%emt 0:00:16]} Rxd6 {[%emt 0:00:15]} 28. Qxd6 {[%emt 0:00:04]} Rd8 {[%emt 0:00:06]} 29. Qc7+ {[%emt 0:00:13]} 1-0